Workbook

Sheet SISS
B3: Survey on Indian Startup Sector-Questionnaire
M5: RESERVE BANK OF INDIA
M6: DEPARTMENT OF STATISTICS AND INFORMATION MANAGEMENT
M7: MUMBAI-400051
M8: Survey on Indian Startup Sector-Questionnaire
L9: Year
M11: A. General Information on the Startup
B13: 1. Name of your Startup
B15: 2. Address (optional):
D16: State: | E16: Select | L16: City: | V16: PIN:
D17: Email: | T17: Contact no:
E18: CIN (21 digits):
B20: 3. Certificate Number as recognised by DIPP as startup(if any):
B22: 4. Total number of founder(s) in your Startup
B24: 5. Total number of female founder(s) in your Startup
B26: 6. Number of the founder(s) in age intervals given below (write number inside the box as applicable)*
F28: a. Less than 20 | J28: b. 20-25 | N28: c. 25-30 | R28: d. 30-40 | W28: e. Above 40
B30: 7. Age of the Startup (in years) | U30: Select
F32: a. Less than one | J32: b. 1-3 | N32: c. 3-5 | R32: d. 5-7
B34: 8. Number of founder(s) with qualification given below (write the number inside the box as applicable)
F36: a. High school | N36: b. Bachelor degree | V36: c. Master degree
F38: d. MBA/CA | N38: e. Others
B40: 9. Academic background of the founder(s) (write the number inside the box as applicable)
F42: a. Science | L42: b. Arts | T42: c. Commerce/Finance
F44: d. Engineering | L44: e. Medicine | T44: f. Marketing
H46: g. Information Technology | L46: h. Law | T46: i. Others
B50: 10. Background of the founder(s) (write the number inside the box as applicable)
F52: a. Professional | N52: b. Business Owner | T52: c. Student
F54: i. Others
B56: 11. Type of your startup | P56: Select
H58: a. Private Ltd. Company | S58: b. Public Ltd. Company
G60: c. Partnership firm | S60: d. Limited Liability Partnership
G62: e. Unregistered
B64: 12. If registered in India,
C65: mention the state in which your Startup has been registered | R65: Select
B67: 13. If registered aboard,
C68: mention the country in which your Startup has been registered | R68: Select
M71: B. Description of the Startup
B73: 14. Sector that best describes your Startup (you can tick more than one, in order of priority ,1 being top)
D75: a. Agriculture | M75: b. Social Commerce
D77: c. Consumer Goods | M77: d. Data & Analytics
D79: e. Education | M79: f. Media & Entertainment
D81: g. Financial Services | M81: h. Energy/renewable Energy
D83: i. Transport& Logistics | M83: j. Sports & Recreation
D85: k. Health | M85: l. Enterprise & Corporate
D87: m. Social Enterprise | M87: n. Food
D89: o. Water supply | M89: p. Manufacturing
D91: q. Product Development | M91: r. Hardware Development
D93: s. Biotechnology | M93: t. Machine learning
D95: u. IT Consulting/ Solution | M95: v. Software Development
D97: w. Travel & Tourism
C99: x. Others (please specify)
B102: 15. Which option will be more suitable for your product: | P102: Select
C104: a. Already exists in the market
C106: b. Improved version of an existing product
C108: c. New Innovative Product
B110: 16. Whether your Startup has filed for patents | U110: Select
B112: 17. Which of the following helped you to set up the Startup (you can tick more than one, in order of priority, 1 being top)
D114: a. Favourable economic conditions | O114: b. Ease of doing business
D116: c. Market/Industry demand | O116: d. Availability of talent
D118: e. Low barriers to entry | O118: f. Experience of team
C120: FALSE | D120: g. None of the above
C122: h. Other (Please Specify)
B124: 18. Which stage is your Startup currently at | S124: Select
C126: a. Idea/Concept | K126: b. Beta /Prototype
C128: c. Early revenue | K128: d. Growing revenues
C130: e. Maturity | K130: f. Expanding to new market(s)
B132: 19. Professional support accessed by your Startup (you can tick more than one, in order of priority, 1 being top)
D134: a. Mentors & Advisors | L134: b. Lawyers/Business Consultants
D136: c. Local Government | L136: d. Industry Connect
D138: e. Chartered Accountant/ Company Secretary
C140: FALSE | D140: f. None of the above
B142: 20. Personal motivation for setting Startup (you can select more than one)
C144: FALSE | D144: a. Opportunity | J144: FALSE | K144: b. Social service | Q144: FALSE | R144: c. Lack of other option
B146: 21. Is your Startup under any incubator/accelerator/Investor/GoI? | U146: Select
B148: 22. Is your Startup under any international incubator/accelerator/Investor | U148: Select
B150: 23. Your target market (you can tick more than one, in order of priority, 1 being top)
D152: a. Rural India | L152: b. Semi-urban India
D154: c. Urban India | L154: d. Metropolitan India
D156: e. Outside India
B158: 24. Which types of Customer targeted by your Startup? (you can tick more than one, in order of priority, 1 being top)
D160: a. B2B | I160: b. B2C
D162: c. B2B2C | I162: d. B2G
B164: 25. What technology is your Startup making use of? (you can tick more than one, in order of priority, 1 being top)
D166: a. Big data & Analytic | O166: b. Machine learning
D168: c. IoT (Internet of Things) | O168: d. Online Aggregator
D170: e. AR (Augmented reality)/VR (virtual reality)
D172: f. Chatbot and Natural Language Processing (NLP)
D174: g. Online Marketing | N174: FALSE | O174: h. None of the above
M175: C. Finance and Performance of the Startup
B176: 26. How your Startup is funded (you can tick more than one, in order of priority, 1 being top)
D178: a. Own funds | L178: b. Family & Friends
D180: c. Funding by NRIs | L180: d. Angel investor
D182: e. Crowd funding | L182: f. Private Equity/VC
D184: g. Banks | L184: h. Funded by SIDBI
D186: i. AIFs (through SEBI) | L186: j. NBFC
D188: k. NABARD | L188: l. Incubator Funding
D190: m. Accelerator Funding | L190: n. Others
B192: 27. In case the Startup expected some financial concession from Government, | U192: Select
C193: did it materialise?
B194: Please mention the possible reason:
B196: 28. Capital infused to your Startup so far (in Rupees) | S196: Select
B201: 29. International funding received by your Startup (in Rupees) | S201: Select
C203: a. < 1 Cr. | J203: b. 1 Cr. -3 Cr. | P203: c. 3 Cr.-10 Cr.
C205: d. Above 10 Cr. | J205: e. None
B207: 30. Working capital required for a period of one year (in Rupees) | S207: Select
B213: 31. Institution from which you received loan easily (you can tick more than one, in order of priority, 1 being top)
D215: a. Public Sector Banks | O215: b. Private Sector Banks
D217: c. Non-Bank Financial Companies | O217: d. External Commercial Borrowing
D219: e. Others | N219: FALSE | O219: f. Not Applicable
B223: 32. Your willingness to convert your loan to Equity | U223: Select
B225: 33. Is your Startup generating revenue | S225: Select
B227: 34. In which financial year of operation did your Startup started | U227: Select
C228: generating revenue? (turnaround time)
B230: 35. Annual turnover of your Startup (in Rupees) | S230: Select
B238: 36. Did your Startup make any profit in the last three years
D241: =IF(M9="","",M9-3&"-"&M9-2) ->  | J241: Select
D243: =IF(M9="","",M9-2&"-"&M9-1) ->  | J243: Select
D245: =IF(M9="","",M9-1&"-"&M9) ->  | J245: Select
M249: D. Employment in the Startup
B252: 37. Number of employees in your Startup in the first six months. | U252: Select
C253: (on roll/on contract)
B256: 38. Number of employees in your startup now | U256: Select
M259: E. Challenges faced by the Startup
B262: 39. Do you think filing registration for regular compliance | U262: Select
C263: (GST/Tax/Employee PF Fund /RoC/Tax Filing etc) is a smooth process in India.
B265: 40. Do you think policies in India for Startups are helpful? | T265: Select
C267: If “Yes” which is/are the most beneficial policy/policies
C271: Please state/suggest which policies will help you the most
B275: 41. Challenge(s) to scale up your business (you can tick more than one, in order of priority, 1 being top)
D277: a. Access to finance | Q277: b. Accessing new market
D279: c. Lack of distribution channel | Q279: d. Regulatory prescriptions
D281: e. Lack of skilled labour/ Technology/ Talent
D283: f. Process of approval from Nodal Agency
C285: FALSE | D285: g. None of the above
M288: F. Future Plan of the Startup
B291: 42. If not already listed, do you plan to | U291: Select
C292: list your Startup on the Indian Stock Exchange in the next five years?
B294: 43. Does your Startup have an intention to exit? | T294: Select
C296: if yes, what are the issues or challenges that affect your Startup to exit
C297: (you can select more than one, in order of priority, 1 being top)
D299: a. Market conditions | Q299: b. Funding requirement
D301: c. General economic situation | Q301: d. Government Policies
D303: e. Growing presence of foreign startups
D305: f. Need to continually innovate to keep ahead
D307: g. Other
B309: 44. Does your Startup have an intention for seeking an acquisition? | T309: Select
B311: 45. How many new employees are you planning to hire in the | T311: Select
C312: next two to three years?
C315: Disclaimer: Information received through this questionnaire will be used for RBI internal purpose only. The data furnished in the questionnaire will be kept confidential and only consolidated aggregate may be published by Reserve Bank of India.

Sheet Masters (hidden)
B2: STATE_NAME | E2: COUNTRY_NAME | H2: Years | K2: 1
B3: Select | E3: Select | H3: Select | K3: 2
B4: ANDAMAN & NICOBAR | E4: AFGHANISTAN | H4: < 2009-2010 | K4: 3
B5: ANDHRA PRADESH | E5: ALBANIA | H5: 2009-2010 | I5: 2010 | K5: 4
B6: ARUNACHAL PRADESH | E6: ALGERIA | H6: =IF(I6="No revenue",I6,IF(I6="","",I5&"-"&I6)) -> 2010-2011 | I6: =IF(OR(I5=SISS!$M$9,I5=""),"",I5+1) -> 2011 | K6: 5
B7: ASSAM | E7: AMERICAN SAMOA | H7: =IF(I7="No revenue",I7,IF(I7="","",I6&"-"&I7)) -> 2011-2012 | I7: =IF(OR(I6=SISS!$M$9,I6=""),"",I6+1) -> 2012 | K7: 6
B8: BIHAR | E8: ANDORA | H8: 2012-2013 | I8: =IF(OR(I7=SISS!$M$9,I7=""),"",I7+1) -> 2013 | K8: 7
B9: CHANDIGARH | E9: ANGOLA | H9: 2013-2014 | I9: =IF(OR(I8=SISS!$M$9,I8=""),"",I8+1) -> 2014 | K9: 8
B10: CHHATTISGARH | E10: ANGUILLA | H10: 2014-2015 | I10: =IF(OR(I9=SISS!$M$9,I9=""),"",I9+1) -> 2015 | K10: 9
B11: DADRA&NAGAR HAVELI | E11: ANTIGUA AND BARBUDA | H11: 2015-2016 | I11: =IF(OR(I10=SISS!$M$9,I10=""),"",I10+1) -> 2016 | K11: 10
B12: DAMAN & DIU | E12: ARGENTINA | H12: 2016-2017 | I12: =IF(OR(I11=SISS!$M$9,I11=""),"",I11+1) -> 2017 | K12: 11
B13: DELHI | E13: ARMENIA | H13: 2017-2018 | I13: =IF(OR(I12=SISS!$M$9,I12=""),"",I12+1) -> 2018 | K13: 12
B14: GOA | E14: ARUBA | H14: 2018-2019 | I14: =IF(OR(I13=SISS!$M$9,I13=""),"",I13+1) -> 2019 | K14: 13
B15: GUJARAT | E15: ASIAN CLEARING UNION | H15: 2019-2020 | I15: =IF(OR(I14=SISS!$M$9,I14=""),"",I14+1) -> 2020 | K15: 14
B16: HARYANA | E16: AUSTRALIA | H16: 2020-2021 | I16: =IF(OR(I15=SISS!$M$9,I15=""),"",I15+1) -> 2021 | K16: 15
B17: HIMACHAL PRADESH | E17: AUSTRIA | H17: 2021-2022 | I17: =IF(OR(I16=SISS!$M$9,I16=""),"",I16+1) -> 2022 | K17: 16
B18: JAMMU & KASHMIR | E18: AZARBAIJAN | K18: 17
B19: JHARKHAND | E19: BAHAMA | K19: 18
B20: KARNATAKA | E20: BAHRAIN | K20: 19
B21: KERALA | E21: BANGLA DESH | K21: 20
B22: LAKSHADWEEP | E22: BARBADOS | K22: 21
B23: MADHYA PRADESH | E23: BELARUS | K23: 22
B24: MAHARASHTRA | E24: BELGIUM | K24: 23
B25: MANIPUR | E25: BELIZE
B26: MEGHALAYA | E26: BENIN
B27: MIZORAM | E27: BERMUDA
B28: NAGALAND | E28: BHUTAN
B29: ORISSA | E29: BOLIVIAN
B30: PONDICHERRY | E30: BONAIRE, ST. EUST, SABA (BES) 3
B31: PUNJAB | E31: BOSNIA-HERZEGOVINA
B32: RAJASTHAN | E32: BOTSWANA
B33: SIKKIM | E33: BOUVET ISLAND
B34: TAMIL NADU | E34: BRAZIL
B35: TELANGANA | E35: BRITISH INDIAN OCEAN TERRITORY
B36: TRIPURA | E36: BRUNEI
B37: UTTAR PRADESH | E37: BULGARIA
B38: UTTARANCHAL | E38: BURKINA FASO
B39: WEST BENGAL | E39: BURUNDI
E40: CAMEROON REPUBLIC
E41: CANADA
E42: CANARY ISLANDS
E43: CAPE VERDE
E44: CAYMAN ISLANDS
E45: CENTRAL AFRICAN REPUBLIC
E46: CHAD
E47: CHILE
E48: CHINA
E49: CHRISTMAS ISLAND
E50: COCOS (KEELING) ISLANDS
E51: COLOMBIA
E52: COMBODIA
E53: COMOROS
E54: CONGO
E55: CONGO, DEM. REP. OF
E56: COOK ISLANDS
E57: COSTA RICA
E58: COTE D'IVOIRE
E59: CROATIA
E60: CUBA
E61: CURACAO 3
E62: CYPRUS
E63: CZECH REPUBLIC
E64: DENMARK
E65: DJIBOUTI
E66: DOMINICA
E67: DOMINICAN REPUBLIC
E68: EAST TIMOR
E69: ECUADOR
E70: EGYPT
E71: EL SALVADOR
E72: EQUATORIAL GUINEA
E73: ERITREA
E74: ESTONIA
E75: ETHIOPIA
E76: EUROPEAN MONETARY SYSTEM
E77: EUROPEAN UNION
E78: FALKLAND ISLANDS
E79: FAROE ISLANDS
E80: FIJI
E81: FINLAND
E82: FRANCE
E83: FRENCH GUIANA
E84: FRENCH POLYNESIA
E85: FRENCH SOUTHERN TERRITORIES
E86: GABON
E87: GAMBIA
E88: GEORGIA
E89: GERMANY
E90: GHANA
E91: GIBRALTAR
E92: GREECE
E93: GREENLAND
E94: GRENADA
E95: GUADELOUPE
E96: GUAM
E97: GUATEMALA
E98: GUERNSEY
E99: GUINEA
E100: GUINEA-BISSAU
E101: GUYANA
E102: HAITI
E103: HEARD ISLAND AND MCDONALD ISLANDS
E104: HONDURAS
E105: HONG KONG
E106: HUNGARY
E107: ICELAND
E108: INDONESIA
E109: INTENATIONAL ORGANISATION
E110: IRAN
E111: IRAQ
E112: IRELAND
E113: ISLE OF MAN
E114: ISRAEL
E115: ITALY
E116: JAMAICA
E117: JAPAN
E118: JERSEY
E119: JORDAN
E120: KAZAKSTAN
E121: KENYA
E122: KIRIBATI
E123: KOREA, DEMOCRATIC PEOPLE'S REPUBLIC OF
E124: KOREA, REPUBLIC OF
E125: KOSOVO
E126: KUWAIT
E127: KYRGYZSTAN
E128: LAOS
E129: LATIN AMERICA
E130: LATVIA
E131: LEBANON
E132: LESOTHO
E133: LIBERIA
E134: LIBYA
E135: LIECHTENSTEIN
E136: LITHUANIA
E137: LUXEMBOURG
E138: MACAU
E139: MACEDONIA
E140: MADAGASCAR
E141: MALAWI
E142: MALAYSIA
E143: MALDIVES
E144: MALI
E145: MALTA
E146: MARSHALL ISLANDS
E147: MARTINIQUE
E148: MAURITANIA
E149: MAURITIUS
E150: MAYOTTE
E151: MEXICO
E152: MICRONESIA, FEDERATED STATES OF
E153: MOLDOVA
E154: MONACO
E155: MONGOLIA
E156: MONTENEGRO, REPUBLIC OF
E157: MONTSERRAT
E158: MOROCCO
E159: MOZAMBIQUE
E160: MYANMAR
E161: NAMIBIA
E162: NAURU
E163: NEPAL
E164: NETHERLANDS
E165: NETHERLANDS ANTILLES
E166: NEW CALEDONIA
E167: NEW ZEALAND
E168: NICARAGUA
E169: NIGER
E170: NIGERIA
E171: NIUE
E172: NO SPECIFIC COUNTRY
E173: NORFOLK ISLAND
E174: NORTHERN MARIANA ISLANDS
E175: NORWAY
E176: OFFSHORE UNIT (INDIA)
E177: OMAN
E178: OTHER COUNTRIES
E179: OTHER EAST ASIAN COUNTRIES
E180: OTHER EUROPEAN COUNTRIES
E181: PAKISTAN
E182: PALAU
E183: PANAMA
E184: PAPUA NEW GUINEA
E185: PARAGUAY
E186: PERU
E187: PHILIPPINES
E188: PITCAIRN
E189: POLAND
E190: PORTUGAL
E191: PUERTO RICO
E192: QATAR
E193: RÉUNION
E194: ROMANIA
E195: RUSSIAN FEDERATION
E196: RWANDA
E197: SAN MARINO
E198: SAN TOME AND PRINCIPE
E199: SAUDI ARABIA
E200: SENEGAL
E201: SERBIA, REPUBLIC OF
... 62 more rows
